Cogmind - Beta 15 @@@ ROGUE MODE // 2025.05.17 @ 17:12:34 // Winter2022/Polymind Player: Minty Result: Destroyed by P-60 Hacker with Shock Rifle Performance ------------- Evolutions (3) 1500 Regions Visited (6) 1200 Robots Destroyed (59) 295 Value Destroyed (2248) 2248 Prototype IDs (0) 0 Alien Tech Used (0) 0 Bonus (3494) 3494 TOTAL SCORE: 8347 Bonus ------- Polymind Skill 2685 Pacifist 200 High Alert Combat Kills 36 Follower Combat Kills 373 Entered Garrisons 200 Cogmind --------- Core Integrity 0/700 Matter 95/100 Energy 240/240 System Corruption 2% Temperature Cool (4) Movement Treading (160) Location -7/Storage Parts ------- > --- POWER (1) -------- Improved Deuterium Engine > --- PROPULSION (2) --- Light Treads Light Treads > --- UTILITY (3) ------ Improved Heat Sink Improved Heat Sink Improved Light Armor Plating > --- WEAPON (2) ------- Gatling Laser Flak Gun > --- INVENTORY (1) ---- (None) Peak State ------------ > --- POWER ------------ Improved Deuterium Engine > --- PROPULSION ------- Light Treads Light Treads > --- UTILITY ---------- Improved Heat Sink Improved Heat Sink Improved Light Armor Plating > --- WEAPON ----------- Gatling Laser Flak Gun > --- INVENTORY -------- (None) [Rating: 23] Favorites ----------- Power Light Nuclear Core Engine Improved Deuterium Engine Power Core Light Nuclear Core Propulsion Light Treads Treads Light Treads Leg Carbon-fiber Leg Flight Unit VTOL Module Utility Improved Heat Sink Device Improved Heat Sink Processor Targeting Computer Protection Improved Light Armor Plating Weapon Gatling Laser Energy Gun Gatling Laser Ballistic Gun Flak Gun Build | -11 -10 -9 -8 -8 -7 -7 ------- Run | Yrd Mat Mat Mat Gar Fac Sto Slots Evolved . | . . . . . . . Power . | . . . . . . . Propulsion . | . . . . . . . Utility . | . . . . . . . Weapon . | . . . . . . . Parts Attached . | . . . . . . . Power . | . . . . . . . Engine . | . . . . . . . Core . | . . . . . . . Reactor . | . . . . . . . Propulsion . | . . . . . . . Treads . | . . . . . . . Leg . | . . . . . . . Wheel . | . . . . . . . Hover . | . . . . . . . Flight . | . . . . . . . Utility . | . . . . . . . Device . | . . . . . . . Storage . | . . . . . . . Processor . | . . . . . . . Hackware . | . . . . . . . Protection . | . . . . . . . Artifact . | . . . . . . . Weapon . | . . . . . . . Energy Gun . | . . . . . . . Energy Cannon . | . . . . . . . Ballistic Gun . | . . . . . . . Ballistic Cannon . | . . . . . . . Launcher . | . . . . . . . Special Weapon . | . . . . . . . Impact Weapon . | . . . . . . . Slashing Weapon . | . . . . . . . Piercing Weapon . | . . . . . . . Special Melee Weapon . | . . . . . . . Unidentified Prototypes . | . . . . . . . Parts Lost 30 | . . 2 . 13 15 . Power 4 | . . . . 2 2 . Propulsion 10 | . . . . 5 5 . Utility 6 | . . 1 . 2 3 . Weapon 10 | . . 1 . 4 5 . Highest Loss Streak 7 | . . 1 . 7 5 . To Critical Strikes . | . . . . . . . Average Backups . | . . . . . . . Power . | . . . . . . . Propulsion . | . . . . . . . Utility . | . . . . . . . Weapon . | . . . . . . . Tool/Special . | . . . . . . . Unused Backups . | . . . . . . . Power . | . . . . . . . Propulsion . | . . . . . . . Utility . | . . . . . . . Weapon . | . . . . . . . Tool/Special . | . . . . . . . Average Slot Usage (%) 89 | . . 89 75 84 88 100 Engine 6 | . . 11 12 6 2 12 Core 5 | . . . . 7 11 . Treads 14 | . . 23 25 12 4 25 Leg 12 | . . . . 17 23 . Flight 1 | . . . . 1 2 . Device 17 | . . 23 25 17 9 25 Processor 3 | . . . . 3 7 . Protection 5 | . . 10 . . 2 12 Energy Gun 8 | . . 8 . 5 7 12 Ballistic Gun 13 | . . 11 12 12 17 12 Peak Build Rating 23 | . . 11 8 15 23 23 Average Rating 14 | . . 10 8 9 12 23 On Entrance 7 | . . . 8 8 11 23 Naked Turns 70 | . 26 11 . 3 30 . Heaviest Build 23 | . . 18 12 18 23 23 Greatest Support 40 | 3 3 40 40 40 40 40 Greatest Overweight (x) 1 | . . . . 1 1 . Average Overweight (x) . | . . . . . . . Largest Inventory Capacity 1 | . . 1 1 1 1 1 Average Capacity . | . . . 1 . . 1 Most Carried . | . . . . . . . Average Carried . | . . . . . . . Final Capacity 1 | . . 1 1 1 1 1 Final Carried . | . . . . . . . Class Distribution -------------------- 56% | Sentry 20% | Hunter 16% | Grunt 4% | Swarmer Dominant Class ---------------- Cogmind | -10/Materials Sentry | -9/Materials Sentry | -8/Materials Sentry | -8/Garrison Hunter | -7/Factory Sentry | -7/Storage Resources | -11 -10 -9 -8 -8 -7 -7 ----------- Run | Yrd Mat Mat Mat Gar Fac Sto Matter Collected 474 | . . 94 . 147 176 57 Remotely . | . . . . . . . Salvage Created 1942 | . . 616 . 317 886 123 Parts 126 | . . 35 . 31 52 8 Haulers Intercepted 1 | . . 1 . . . . Recyclers Shooed 1 | . . . . . . 1 Parts Field Recycled . | . . . . . . . Retrieved Matter . | . . . . . . . Parts Self-Destructed . | . . . . . . . Prevented . | . . . . . . . Kills | -11 -10 -9 -8 -8 -7 -7 ------- Run | Yrd Mat Mat Mat Gar Fac Sto Combat Hostiles Destroyed 50 | . . 10 . 18 19 3 Guns 49 | . . 10 . 17 19 3 Classes Destroyed 12 | . . 4 . 2 6 . Worker 1 | . . . . . 1 . Builder 1 | . . . . . 1 . Hauler 1 | . . 1 . . . . Mechanic 1 | . . . . . 1 . Operator 1 | . . . . . 1 . Watcher 4 | . . 3 . . 1 . Swarmer 12 | . . . . 10 2 . Grunt 26 | . . 8 . 5 10 3 Brawler 1 | . . . . . 1 . Sentry 8 | . . 2 . 2 4 . Hunter 2 | . . . . 1 1 . Programmer 1 | . . . . . 1 . Best Kill Streak 9 | . . 4 . 9 6 2 Combat Bots Only 9 | . . 3 . 9 4 2 Max Kills in Single Turn 2 | . . 2 . 2 1 1 Gunslinging . | . . . . . . . Exploded . | . . . . . . . Melee . | . . . . . . . Uniques/NPCs Destroyed . | . . . . . . . Combat | -11 -10 -9 -8 -8 -7 -7 -------- Run | Yrd Mat Mat Mat Gar Fac Sto Hostile Shots Fired 544 | . . 44 . 206 289 5 Missed 180 | . . 8 . 60 110 2 Hits 364 | . . 36 . 146 179 3 Projectile 364 | . . 36 . 146 179 3 Critical Strikes 8 | . . . . 4 4 . Damage Taken 4707 | . . 502 . 1728 2398 79 Core 1244 | . . 79 . 461 669 35 Absorbed by Shields 35 | . . . . 35 . . Ignored by Resistances 181 | . . 38 . 129 14 . Regen/Repaired (Parts) 65 | . . 22 . . 43 . Core Remaining (%) 74 | 100 100 80 . 16 . . Volleys Fired 220 | . . 30 . 70 114 6 Largest 2 | . . 2 . 2 2 2 Hottest 108 | . . 79 . 79 79 108 Shots Fired 302 | . . 51 . 94 145 12 Gun 302 | . . 51 . 94 145 12 Cannon . | . . . . . . . Launcher . | . . . . . . . Special . | . . . . . . . Kinetic 182 | . . 30 . 64 82 6 Thermal 120 | . . 21 . 30 63 6 Explosive . | . . . . . . . Electromagnetic . | . . . . . . . Robot Hit Streak 12 | . . 12 . 7 10 7 Robot Miss Streak 5 | . . 2 . 2 5 5 Penetration Max 1 | . . . . 1 . . Secondary Targets 4 | . . 1 . 1 2 . Max Gunslinging Chain 1 | . . 1 . 1 1 . Shots Hit Robots 203 | . . 38 . 56 98 11 Core Hits 117 | . . 20 . 32 51 14 Critical Kills . | . . . . . . . Critical Parts Destroyed . | . . . . . . . Critical Strikes 2 | . . . . 1 1 . Burn 2 | . . . . 1 1 . Melee Attacks . | . . . . . . . Impact . | . . . . . . . Slashing . | . . . . . . . Piercing . | . . . . . . . Sneak Attacks . | . . . . . . . Combat Hostiles . | . . . . . . . Follow-up Attacks . | . . . . . . . Damage Inflicted 3739 | . . 795 . 988 1672 284 Guns 3544 | . . 617 . 983 1672 272 Cannons . | . . . . . . . Explosions 153 | . . 153 . . . . Melee . | . . . . . . . Ramming 42 | . . 25 . 5 . 12 Kinetic 2124 | . . 378 . 653 974 119 Thermal 1420 | . . 239 . 330 698 153 Explosive 153 | . . 153 . . . . Electromagnetic . | . . . . . . . Impact . | . . . . . . . Slashing . | . . . . . . . Piercing . | . . . . . . . Highest Corruption 2 | . . . . . 2 2 Average Corruption 1 | . . . . . 1 2 Corruption Purged . | . . . . . . . Corruption Blocked . | . . . . . . . Effects 13 | . . . . . 4 9 Message Errors 4 | . . . . . . 4 Matter Fused 4 | . . . . . 2 2 Energy Discharges 3 | . . . . . . 3 Data Loss (minor) 1 | . . . . . 1 . Data Loss (major) 1 | . . . . . 1 . Overload Shots . | . . . . . . . Overflow Damage 8 | . . 8 . . . . Projectiles . | . . . . . . . Explosions 8 | . . 8 . . . . Melee . | . . . . . . . Knockbacks . | . . . . . . . Impact . | . . . . . . . Kinetic . | . . . . . . . Secondary . | . . . . . . . Self-Inflicted Damage 37 | . . 37 . . . . Shots 1 | . . 1 . . . . Rammed 7 | . . 4 . 2 . 1 Targets Rammed 7 | . . 4 . 2 . 1 Kicked . | . . . . . . . Crushed . | . . . . . . . Highest Temperature 234 | . . 65 . 91 234 30 Average Temperature 35 | . . 28 . 30 43 10 Received Heat Transfer 1773 | . . 237 . 603 915 18 Siege Activations . | . . . . . . . Martial Activations . | . . . . . . . Shielding Activations . | . . . . . . . Robots Disrupted . | . . . . . . . Combat Hostiles . | . . . . . . . Robots Corrupted . | . . . . . . . Combat Hostiles . | . . . . . . . Parts Fried . | . . . . . . . Impact Corruptions . | . . . . . . . Robots Melted 1 | . . . . 1 . . Combat Hostiles 1 | . . . . 1 . . Parts Melted 2 | . . 1 . 1 . . Heat Transferred 3470 | . . 592 . 851 1702 325 Parts Sabotaged . | . . . . . . . Parts Stolen . | . . . . . . . Parts Stripped . | . . . . . . . Power Chain Reactions . | . . . . . . . Alert | -11 -10 -9 -8 -8 -7 -7 ------- Run | Yrd Mat Mat Mat Gar Fac Sto Maximum Alert Level 2 | . . 1 . 2 1 . Low Security (%) 80 | . 100 91 100 52 76 100 Level 1 15 | . . 8 . 25 23 . Level 2 4 | . . . . 22 . . Level 3 . | . . . . . . . Level 4 . | . . . . . . . Level 5 . | . . . . . . . High Security . | . . . . . . . Max Security . | . . . . . . . Peak Influence 566 | . . 231 92 566 371 142 Initial 296 | . . . 92 49 296 13 Average 140 | . . 91 84 238 171 55 Influence Increases 2010 | . . 359 4 659 500 488 Destroy 0b10 Robot/C 1200 | . . 200 . 360 380 260 Destroy 0b10 Robot/NC 50 | . . 20 . . 25 5 Destroy Leader 220 | . . 48 . 20 92 60 Allied During Kill 147 | . . . . . . 147 Successful Hack 44 | . . 11 4 14 . 15 Disable Machine 45 | . . 45 . . . . Anti-Garrison Action 200 | . . . . 200 . . Destroy Structure 44 | . . 20 . 20 3 1 Lose Combat Pursuer 60 | . . 15 . 45 . . Influence Decreases 1952 | . . 138 149 169 1036 460 Entered New Map 443 | . . . 129 27 270 17 Time Decay 847 | . . 118 20 . 446 263 Lost Part 300 | . . 20 . 130 150 . Lost Ally 180 | . . . . . . 180 Purge Threat 150 | . . . . . 150 . Miscellaneous 32 | . . . . 12 20 . Squads Dispatched 12 | . . 1 . . 8 3 Investigation 7 | . . 1 . . 4 2 Extermination 4 | . . . . . 3 1 Reinforcement 1 | . . . . . 1 . Assault . | . . . . . . . Garrison . | . . . . . . . Intercept . | . . . . . . . Searches Triggered . | . . . . . . . Construction Impeded . | . . . . . . . Haulers Reinforced . | . . . . . . . Active Scanning Responses . | . . . . . . . Cargo Convoy Interrupts . | . . . . . . . Stealth | -11 -10 -9 -8 -8 -7 -7 --------- Run | Yrd Mat Mat Mat Gar Fac Sto Distress Signals 5 | . . 1 . . 3 1 Communications Jammed . | . . . . . . . Distress Signals . | . . . . . . . Times Spotted 99 | . . 13 . 35 40 11 Peak Tracking Total 6 | . . 5 . 6 5 3 Tactical Retreats 4 | . . 1 . 3 . . Traps | -11 -10 -9 -8 -8 -7 -7 ------- Run | Yrd Mat Mat Mat Gar Fac Sto Traps Triggered 4 | . . . . 1 3 . Indirectly . | . . . . . . . Trap Hack Attempts . | . . . . . . . Triggered . | . . . . . . . Disarmed . | . . . . . . . Reprogrammed . | . . . . . . . Reused . | . . . . . . . Traps Extracted . | . . . . . . . Installed . | . . . . . . . Triggered . | . . . . . . . Objects Rigged 5 | . . 5 . . . . Exploded 1 | . . 1 . . . . Machines | -11 -10 -9 -8 -8 -7 -7 ---------- Run | Yrd Mat Mat Mat Gar Fac Sto Machines Disabled 4 | . . 3 . 1 . . Max in Single Turn 2 | . . 2 . 1 . . Garrison Access 1 | . . . . . 1 . Garrison Relay 1 | . . . . 1 . . Machines Repaired . | . . . . . . . Machines Dismantled . | . . . . . . . Machines Sabotaged . | . . . . . . . Overloaded Fab Kills . | . . . . . . . Hacking | -11 -10 -9 -8 -8 -7 -7 --------- Run | Yrd Mat Mat Mat Gar Fac Sto Machines Accessed 14 | . . 2 1 3 6 2 Terminals 9 | . . 1 . 3 3 2 Fabricators . | . . . . . . . Repair Stations 3 | . . 1 . . 2 . Recycling Units . | . . . . . . . Scanalyzers . | . . . . . . . Garrison Access 2 | . . . 1 . 1 . Total Hacks 41 | . . 6 1 10 17 7 Successful 15 | . . 4 1 2 6 2 Failed 26 | . . 2 . 8 11 5 Catastrophic 5 | . . 1 . 1 2 1 Database Lockouts . | . . . . . . . Manual 16 | . . 6 . 1 5 4 Terminals 34 | . . 4 . 10 13 7 Fabricators . | . . . . . . . Repair Stations 5 | . . 2 . . 3 . Recycling Units . | . . . . . . . Scanalyzers . | . . . . . . . Garrison Access 2 | . . . 1 . 1 . Terminal Hacks 6 | . . . . 1 4 1 Record 1 | . . . . . 1 . Branch Access Points 1 | . . . . . . 1 Emergency Access Points 1 | . . . . 1 . . Alert Level 1 | . . . . . 1 . Unreport Threat 1 | . . . . . 1 . Zone Layout 1 | . . . . . 1 . Fabricator Hacks . | . . . . . . . Repair Station Hacks 1 | . . 1 . . . . Refit 1 | . . 1 . . . . Recycling Unit Hacks . | . . . . . . . Scanalyzer . | . . . . . . . Garrison Access Hacks 2 | . . . 1 . 1 . Unlock Access 1 | . . . 1 . . . Seal Access 1 | . . . . . 1 . Unauthorized Hacks 6 | . . 3 . 1 1 1 Terminals 4 | . . 2 . 1 . 1 Track 1 | . . 1 . . . . Detonate 1 | . . 1 . . . . Disrupt 1 | . . . . . . 1 Override 1 | . . . . 1 . . Fabricators . | . . . . . . . Repair Stations 2 | . . 1 . . 1 . Patch 2 | . . 1 . . 1 . Recycling Units . | . . . . . . . Scanalyzers . | . . . . . . . Garrison Access . | . . . . . . . Data Cores Recovered . | . . . . . . . Used . | . . . . . . . Hacking Detections 11 | . . 1 1 3 4 2 Full Trace Events 7 | . . . . 2 3 2 Feedback Events . | . . . . . . . Feedback Blocked . | . . . . . . . Robot Schematics Acquired . | . . . . . . . Robots Built . | . . . . . . . Authchips . | . . . . . . . Time . | . . . . . . . Total Robot Build Rating . | . . . . . . . Part Schematics Acquired . | . . . . . . . Parts Built . | . . . . . . . Authchips . | . . . . . . . Time . | . . . . . . . Total Part Build Rating . | . . . . . . . Parts Repaired . | . . . . . . . Time . | . . . . . . . Parts Recycled . | . . . . . . . Recycled Matter . | . . . . . . . Retrieved Matter . | . . . . . . . Retrieved Components . | . . . . . . . Parts Scanalyzed . | . . . . . . . Part Schematics Acquired . | . . . . . . . Parts Damaged . | . . . . . . . Bothacking | -11 -10 -9 -8 -8 -7 -7 ------------ Run | Yrd Mat Mat Mat Gar Fac Sto Used RIF Installer . | . . . . . . . Robots Hacked 11 | . . 1 . 5 5 . Non-combat . | . . . . . . . Combat 11 | . . 1 . 5 5 . Robot Hacks Applied 16 | . . 1 . 5 10 . find_shortcuts 11 | . . 1 . 5 5 . find_garrison 5 | . . . . . 5 . Relay Couplers Released 3 | . . . . 3 . . Machine Destruction 3 | . . . . 3 . . Fabnet Peak Effective % . | . . . . . . . Robots Rewired . | . . . . . . . Allies Hacked . | . . . . . . . Hacks Repelled . | . . . . . . . Allies | -11 -10 -9 -8 -8 -7 -7 -------- Run | Yrd Mat Mat Mat Gar Fac Sto Total Allies 10 | . . . . . . 10 Largest Group 10 | . . . . . . 10 Highest-Rated Group 173 | . . . . . . 173 Highest-Rated Ally 29 | . . . . . . 29 Total Orders . | . . . . . . . Ally Attacks 95 | . . . . . . 95 Total Damage 1228 | . . . . . . 1228 Kills 11 | . . . . . . 11 Allies Corrupted . | . . . . . . . Allies Melted . | . . . . . . . Intel | -11 -10 -9 -8 -8 -7 -7 ------- Run | Yrd Mat Mat Mat Gar Fac Sto Active Infowar (turns) . | . . . . . . . Robot Analysis Total 6 | . . 1 . 3 2 . Derelict Logs Recovered . | . . . . . . . Drone Launches . | . . . . . . . Drone Recoveries . | . . . . . . . Exploration | -11 -10 -9 -8 -8 -7 -7 ------------- Run | Yrd Mat Mat Mat Gar Fac Sto Turns Passed 2868 | . 26 296 45 571 1119 811 Spaces Moved 1621 | 1 52 125 28 318 856 241 Core 244 | 1 52 21 . 35 135 . Treads 606 | . . 104 28 154 79 241 Legs 552 | . . . . 106 446 . Wheels . | . . . . . . . Hover . | . . . . . . . Flight 219 | . . . . 23 196 . Fastest Speed 32 | 50 50 50 160 37 32 160 Average Speed 115 | 50 50 141 160 127 97 160 Slowest Speed 160 | 50 50 160 160 160 160 160 Overloaded Moves . | . . . . . . . Propulsion Burnouts . | . . . . . . . Robots Hopped 8 | . . . . 2 6 . Potential Cave-ins . | . . . . . . . Cave-ins Triggered . | . . . . . . . Exploration Rate (%) 22 | 2 15 18 6 54 24 39 Regions Visited 6 Branch Regions 1 Pre-discovered Areas . | . . . . . . . Known Exits Taken 1 | . . . 1 . . . Unknown Exits Taken 4 | 1 1 1 . . 1 . Scrap Searched . | . . . . . . . Spaces Dug . | . . . . . . . Terrain Destroyed 35 | . . 33 . 1 1 . Melee . | . . . . . . . Projectile 2 | . . . . 1 1 . AOE 33 | . . 33 . . . . Terrain Rammed . | . . . . . . . Walls Destroyed . | . . . . . . . Machines Disabled . | . . . . . . . Actions | -11 -10 -9 -8 -8 -7 -7 --------- Run | Yrd Mat Mat Mat Gar Fac Sto Total 2300 | . 51 191 28 387 990 653 Wait 465 | . . 33 . . 27 405 Move 1601 | . 51 124 28 313 844 241 Hop 6 | . . . . 1 5 . Pick Up . | . . . . . . . Fast Attach . | . . . . . . . Attach . | . . . . . . . Detach . | . . . . . . . Swap . | . . . . . . . Drop . | . . . . . . . Fire 220 | . . 30 . 70 114 6 Melee . | . . . . . . . Ram . | . . . . . . . Kick . | . . . . . . . Crush 7 | . . 4 . 2 . 1 Escape Stasis 1 | . . . . 1 . . Rewire . | . . . . . . . Trap . | . . . . . . . Miscellaneous . | . . . . . . . Route ------- -11/Scrapyard -10/Materials -9/Materials -8/Materials -8/Garrison (discovered 3 exits: *Fac x3) -7/Factory -7/Storage (discovered 2 exits: [*Fac] / Rec) History --------- Turn | Location | Event 1 | -11/Scrapyard | Discovered new exit (range 0) 1 | -11/Scrapyard | Entered Materials 20 | -10/Materials | Discovered new exit (range 16) 27 | -10/Materials | Entered another Materials area 281 | -9/Materials | Discovered new exit (range 16) 323 | -9/Materials | Entered another Materials area 368 | -8/Materials | Identified exit to Garrison 368 | -8/Materials | Entered Garrison 442 | -8/Garrison | Triggered checkpoint 456 | -8/Garrison | Triggered checkpoint 495 | -8/Garrison | Discovered new exit (range 11) 514 | -8/Garrison | Triggered checkpoint 558 | -8/Garrison | Garrison Relay disabled 630 | -8/Garrison | Attempted to access garrison exit controls, blocked by remote lockdown 666 | -8/Garrison | Lost 3 parts (1n1u1w) 734 | -8/Garrison | Destroyed 9 combat bots 771 | -8/Garrison | Core integrity fell below 50% 813 | -8/Garrison | Lost 7 parts (1p3n3w) 885 | -8/Garrison | Identified exit to Factory 917 | -8/Garrison | Core integrity fell below 20% 939 | -8/Garrison | Entered Factory 944 | -7/Factory | Lost 3 parts (1p1n1u) 1054 | -7/Factory | Lost 5 parts (1n2u2w) 1289 | -7/Factory | Lost 3 parts (1n1u1w) 1535 | -7/Factory | Core integrity fell below 50% 1749 | -7/Factory | Lost 3 parts (1p1n1w) 1844 | -7/Factory | Core integrity fell below 20% 2034 | -7/Factory | Discovered new exit (range 15) 2058 | -7/Factory | Entered Storage 2126 | -7/Storage | Identified exit to Recycling 2191 | -7/Storage | Assisted by bots powering up and referring to "LRC-V3" 2256 | -7/Storage | Lost 3 allies 2746 | -7/Storage | Lost 3 allies 2818 | -7/Storage | Discovered new exit (range 16) 2869 | -7/Storage | Destroyed by P-60 Hacker with Shock Rifle Last Messages --------------- 02807_ G-47 Trooper destroyed. 02808_ JDPZR4KJ5PK:JB%AJWNZ&AXL4EMHMV5F19 02810_ K-01 Serf collects debris. 02813_ Acquired 10 Protomatter. 02813_ K-01 Serf cleans the Transport Mainframe. 02815_ K-01 Serf collects debris. 02818_ EXIT=FOUND 02821_ K-01 Serf collects debris. 02822_ K-01 Serf cleans the Transport Mainframe. 02827_ R-06 Scavenger collects Aluminum Leg. 02830_ K-01 Serf cleans the Transport Mainframe. 02832_ R-06 Scavenger collects Aluminum Leg. 02835_ K-01 Serf cleans the Transport Mainframe. 02841_ System corrupted: Energy discharge (-88). 02848_ ALERT: Potential suspicious activity detected, Programmers report to Storage Zone 7E. 02851_ K-01 Serf cleans the Transport Mainframe. 02861_ Trooper 4e destroyed. 02866_ K-01 Serf cleans the Transport Mainframe. 02867_ M-28 Smith repairs P-60 Hacker. Map ----- +----------------------------------------------------+ | ??????????????# # """ #?????????????????????? | | ??????????????# # """ #?????????????????????? | | ??????????????# # #?????????????????????? | | ??????????????# [ ###########????????????????????? | | ????#########?#= # #????????????????????? | | ????# ?# !%# """" #????????????????????? | | ????# # # ""R"" #????????????????????? | | ????# # # "" "" #????????????????????? | | ???????????" + + #????????????????????? | | ???????????" #% =# #????????????????????? | | ???????????" # # [ #????????????????????? | | ???????????" ?# # #????????????????????? | | ??????????? += %######## ##????????????????????? | | ??????????####### #????????#?????????????????????? | | ????????????????# ##########?????????????????????? | | ????????????????#%## #?????????????????????? | | ????????????????# ## """" #?????????????????????? | | ????????????????# ## """" #?????????????????????? | | ????????????????# ## """" #?????????????????????? | | ????????????????# ##! """" #?????????????????????? | | ????????????????# ## ##????????????????????? | | ????????????????+ + """"k #????????????????????? | | ????????????????#### """" ##????????????????????? | | ???????????????????# """" #?????????????????????? | | ???????????????????# p"""" #?????????????????????? | | ???????????????????# m%pY[#?????????????????????? | | ????????????????#######+#### #???????????????? | | ????????? == #???????????????? | | ?????????< = #???????????????? | | ????????? #???????????????? | | ??????????################## #???????????????? | | ?????????????????????????????#####???????????????? | | | | | | | | | | | | | | | | | | | | | | | | | | | | | | | | | | | | | +----------------------------------------------------+ Best States ------------- Heat Dissipation 43 Energy Generation 21 Energy Capacity 240 Matter Stores 200 Matter Capacity 200 Sight Range 16 Terrain Scan Density 10 Armor Coverage 150 Resistance: KI 25 Resistance: EX 50 Resistance: I 25 Evasion (%) 63 Targeting Accuracy 5 Recoil Reduction 2 Item Schematics ----------------- None Robot Schematics ------------------ None Fabricated ------------ Nothing Repaired ---------- Nothing Alien Tech Used ----------------- None Achievements -------------- None Challenges ------------ None Polymind | -11 -10 -9 -8 -8 -7 -7 ---------- Run | Yrd Mat Mat Mat Gar Fac Sto Hosts 11 | . . 1 . 5 5 . Combat Hostiles 11 | . . 1 . 5 5 . Allies . | . . . . . . . Unique Host Classes 4 | . . 1 . 3 . . Average Host Suspicion 83 | . . 91 5 76 98 71 Unsuspicious Activity 529 | . . 43 . 26 65 395 Returns to Shadow 1 | . . . . . . 1 Fuzzy Dispatches 4 | . . . . . 3 1 Protomatter Created 548 | . . 12 . 105 235 196 Used 305 | . . 23 . 123 159 . Decayed 39 | . . . . . 19 20 Highest Spend 51 | . . 23 . 34 51 . Top 5 Hosts by Kills: H-55 Commando (-8/Garrison: 12) Y-45 Defender (-9/Materials: 10) Y-45 Defender (-8/Garrison: 6) H-55 Commando (-7/Factory: 6) G-47 Trooper (-7/Factory: 4) Game ------ Seed MiniIonMicrothruster Manual? 0 Play Time 00:16:42 Cumulative 1045.3 hours Start 2025.05.17 @ 16:58:09 End 2025.05.17 @ 17:12:34 Sessions 1 Manual Loads 0 Difficulty Rogue Special Mode Winter2022/Polymind Game No. 1298 Rogue 1015 Adventurer 124 Explorer 159 Win Type - Total 46 Types 32/0/8/4/1/0/0/1/0/0 Lore% 91 Gallery% 85 Achievement% 80 Wizard Run 0 Options --------- Layout 0 ASCII 0 Keyboard 1 Movement Numpad Keybinds 0 Fullscreen 2 Font 18/X11 Map View 76x50 Zoom Use 0% Tactical HUD 1 Map Filters NONE Filters NONE Steam 1 RUN: 52f50bb1-8017-4d0b-9214-4e792376a7c7